[Event "*** MasterClass Titled Tuesday Blitz"]
[Site "Chess.com"]
[Date "2017.09.05"]
[Round "6"]
[White "livestrong04"]
[Black "Art10ECHR"]
[Result "1/2-1/2"]
[WhiteElo "2365"]
[BlackElo "2232"]
[TimeControl "180+2"]
[EndTime "14:30:21 PDT"]
[Termination "Game drawn by repetition"]

1. e4 {[%clk 0:03:01.9]} 1... c5 {[%clk 0:03:00.3]} 2. c3 {[%clk 0:03:02.3]}
2... Nf6 {[%clk 0:03:00.9]} 3. e5 {[%clk 0:03:02.9]} 3... Nd5 {[%clk 0:03:02.5]}
4. d4 {[%clk 0:03:02.8]} 4... cxd4 {[%clk 0:03:04.4]} 5. Nf3 {[%clk 0:03:04.1]}
5... e6 {[%clk 0:03:04.4]} 6. cxd4 {[%clk 0:03:05.6]} 6... d6 {[%clk 0:03:06]}
7. Bc4 {[%clk 0:03:07.1]} 7... Be7 {[%clk 0:03:06.1]} 8. O-O {[%clk 0:03:08.6]}
8... O-O {[%clk 0:03:07.3]} 9. Bd2 {[%clk 0:03:09.7]} 9... b6 {[%clk 0:03:06.1]}
10. Qe2 {[%clk 0:03:07]} 10... Bb7 {[%clk 0:03:04.8]} 11. Nc3 {[%clk 0:03:06.3]}
11... Nxc3 {[%clk 0:03:00.3]} 12. Bxc3 {[%clk 0:03:08.2]} 12... Bxf3 {[%clk
0:03:01.2]} 13. Qxf3 {[%clk 0:03:08.1]} 13... d5 {[%clk 0:03:02.7]} 14. Bd3
{[%clk 0:03:08]} 14... Nc6 {[%clk 0:03:01.8]} 15. a3 {[%clk 0:03:03.9]} 15... a6
{[%clk 0:02:37.6]} 16. g3 {[%clk 0:03:00.5]} 16... b5 {[%clk 0:02:13.6]} 17. h4
{[%clk 0:02:59.1]} 17... Qb6 {[%clk 0:02:12.9]} 18. Qg4 {[%clk 0:02:53.3]} 18...
a5 {[%clk 0:02:12]} 19. Rfd1 {[%clk 0:02:12.8]} 19... b4 {[%clk 0:02:08.3]} 20.
Be1 {[%clk 0:02:03.7]} 20... Nxd4 {[%clk 0:02:04.7]} 21. Bxh7+ {[%clk
0:01:56.8]} 21... Kxh7 {[%clk 0:02:07.5]} 22. Rxd4 {[%clk 0:01:57.7]} 22... Bc5
{[%clk 0:02:01.4]} 23. Rf4 {[%clk 0:01:50.7]} 23... bxa3 {[%clk 0:01:57.6]} 24.
bxa3 {[%clk 0:01:49.7]} 24... Qb2 {[%clk 0:01:59.5]} 25. Rd1 {[%clk 0:01:43.9]}
25... Qxe5 {[%clk 0:01:49.5]} 26. Rf3 {[%clk 0:01:31.1]} 26... Kg8 {[%clk
0:01:46.1]} 27. Rc1 {[%clk 0:01:16.4]} 27... Rfc8 {[%clk 0:01:29.3]} 28. Bc3
{[%clk 0:00:56.5]} 28... d4 {[%clk 0:01:25.7]} 29. Re1 {[%clk 0:00:57.1]} 29...
Qd5 {[%clk 0:01:22.4]} 30. Bd2 {[%clk 0:00:57.3]} 30... d3 {[%clk 0:01:18.1]}
31. h5 {[%clk 0:00:44.5]} 31... f5 {[%clk 0:01:06.8]} 32. Qg6 {[%clk 0:00:43.1]}
32... Qxf3 {[%clk 0:00:44.7]} 33. h6 {[%clk 0:00:37]} 33... Qxf2+ {[%clk
0:00:38.7]} 34. Kh1 {[%clk 0:00:35.8]} 34... Rc7 {[%clk 0:00:39.6]} 35. Bc3
{[%clk 0:00:28.7]} 35... Bd4 {[%clk 0:00:34.9]} 36. Qxe6+ {[%clk 0:00:18.3]}
36... Kh8 {[%clk 0:00:33.1]} 37. Qd5 {[%clk 0:00:19.8]} 37... Rf8 {[%clk
0:00:11.7]} 38. hxg7+ {[%clk 0:00:08.4]} 38... Rxg7 {[%clk 0:00:11.4]} 39. Qxd4
{[%clk 0:00:08.2]} 39... Qxd4 {[%clk 0:00:11.6]} 40. Bxd4 {[%clk 0:00:09.4]}
40... Rd8 {[%clk 0:00:11.9]} 41. Bc3 {[%clk 0:00:08.4]} 41... Kh7 {[%clk
0:00:11.7]} 42. Bxg7 {[%clk 0:00:08.5]} 42... Kxg7 {[%clk 0:00:13.6]} 43. Kg2
{[%clk 0:00:09.7]} 43... Kf6 {[%clk 0:00:14.6]} 44. Rd1 {[%clk 0:00:10.2]} 44...
Ke5 {[%clk 0:00:14.8]} 45. Kf3 {[%clk 0:00:11.6]} 45... d2 {[%clk 0:00:14.7]}
46. Ke3 {[%clk 0:00:12.4]} 46... Rd7 {[%clk 0:00:14]} 47. a4 {[%clk 0:00:13.4]}
47... Rd6 {[%clk 0:00:14.5]} 48. Rxd2 {[%clk 0:00:12]} 48... Rxd2 {[%clk
0:00:15.2]} 49. Kxd2 {[%clk 0:00:13.3]} 49... Ke4 {[%clk 0:00:13.6]} 50. Ke2
{[%clk 0:00:14.5]} 50... Kd4 {[%clk 0:00:13.9]} 51. Kd2 {[%clk 0:00:10]} 51...
Kc4 {[%clk 0:00:14.6]} 52. Ke3 {[%clk 0:00:11.3]} 52... Kd5 {[%clk 0:00:08.7]}
53. Kd3 {[%clk 0:00:12]} 53... Ke5 {[%clk 0:00:07.7]} 54. Ke3 {[%clk 0:00:13.1]}
54... Kd5 {[%clk 0:00:07.7]} 55. Kf4 {[%clk 0:00:12.3]} 55... Ke6 {[%clk
0:00:09]} 56. Kg5 {[%clk 0:00:12.8]} 56... Ke5 {[%clk 0:00:10.1]} 57. Kg6 {[%clk
0:00:13.9]} 57... Ke4 {[%clk 0:00:11.6]} 58. Kg5 {[%clk 0:00:14.8]} 58... Ke5
{[%clk 0:00:13]} 59. Kg6 {[%clk 0:00:15.4]} 59... Ke4 {[%clk 0:00:14.6]} 60. Kg5
{[%clk 0:00:05.9]} 60... Ke5 {[%clk 0:00:15]} 61. Kg6 {[%clk 0:00:04.8]} 1/2-1/2

[Event "*** MasterClass Titled Tuesday Blitz"]
[Site "Chess.com"]
[Date "2017.09.05"]
[Round "6"]
[White "BilodeauA"]
[Black "VSERGUEI"]
[Result "1-0"]
[WhiteElo "2661"]
[BlackElo "2572"]
[TimeControl "180+2"]
[EndTime "14:30:34 PDT"]
[Termination "BilodeauA won on time"]

1. d4 {[%clk 0:03:01.9]} 1... d5 {[%clk 0:02:58.2]} 2. Nc3 {[%clk 0:03:02.9]}
2... Nf6 {[%clk 0:02:58.2]} 3. Bf4 {[%clk 0:03:03.4]} 3... a6 {[%clk 0:02:57.6]}
4. e3 {[%clk 0:03:04.4]} 4... e6 {[%clk 0:02:57.9]} 5. g4 {[%clk 0:03:05.3]}
5... c5 {[%clk 0:02:55.2]} 6. g5 {[%clk 0:03:02.4]} 6... Nfd7 {[%clk 0:02:55]}
7. h4 {[%clk 0:03:02.7]} 7... Nc6 {[%clk 0:02:54.8]} 8. Nge2 {[%clk 0:02:49.4]}
8... b5 {[%clk 0:02:46.6]} 9. Ng3 {[%clk 0:02:48.8]} 9... Qa5 {[%clk 0:02:41.3]}
10. Bg2 {[%clk 0:02:37.9]} 10... cxd4 {[%clk 0:02:25]} 11. exd4 {[%clk
0:02:38.8]} 11... Qb4 {[%clk 0:02:25.6]} 12. Ne2 {[%clk 0:02:30.4]} 12... Qxb2
{[%clk 0:02:21.9]} 13. O-O {[%clk 0:02:14]} 13... Qa3 {[%clk 0:02:15.6]} 14. Qd3
{[%clk 0:01:48]} 14... b4 {[%clk 0:02:06.5]} 15. Bxd5 {[%clk 0:00:47.8]} 15...
exd5 {[%clk 0:01:55]} 16. Qe3+ {[%clk 0:00:49.1]} 16... Be7 {[%clk 0:01:01.9]}
17. Bd6 {[%clk 0:00:49.4]} 17... Kf8 {[%clk 0:00:46.6]} 18. Bxe7+ {[%clk
0:00:43.3]} 18... Nxe7 {[%clk 0:00:46.5]} 19. Rfe1 {[%clk 0:00:28.8]} 19... bxc3
{[%clk 0:00:46]} 20. Nf4 {[%clk 0:00:30.5]} 20... Qd6 {[%clk 0:00:39.4]} 21.
Nxd5 {[%clk 0:00:29.4]} 21... Qe6 {[%clk 0:00:22]} 22. Nxe7 {[%clk 0:00:24]}
22... Qxe3 {[%clk 0:00:22.1]} 23. Rxe3 {[%clk 0:00:25.9]} 23... g6 {[%clk
0:00:20.2]} 24. Rb1 {[%clk 0:00:24.7]} 24... Kg7 {[%clk 0:00:20.4]} 25. Rxc3
{[%clk 0:00:26]} 25... Rd8 {[%clk 0:00:20.3]} 26. d5 {[%clk 0:00:24.7]} 26...
Ne5 {[%clk 0:00:20.7]} 27. Re1 {[%clk 0:00:24.2]} 27... Nd7 {[%clk 0:00:16.8]}
28. Rc7 {[%clk 0:00:25.1]} 28... Nb6 {[%clk 0:00:16.7]} 29. c4 {[%clk
0:00:26.1]} 29... Rd7 {[%clk 0:00:16.8]} 30. Nxc8 {[%clk 0:00:27.2]} 30... Rxc8
{[%clk 0:00:14.9]} 31. Rxc8 {[%clk 0:00:26.8]} 31... Nxc8 {[%clk 0:00:16.8]} 32.
Rb1 {[%clk 0:00:22]} 32... Rc7 {[%clk 0:00:17.2]} 33. Rc1 {[%clk 0:00:21]} 33...
Nb6 {[%clk 0:00:15.7]} 34. d6 {[%clk 0:00:22.4]} 34... Rc6 {[%clk 0:00:16.5]}
35. Rd1 {[%clk 0:00:20.1]} 35... Nd7 {[%clk 0:00:16.9]} 36. Rd4 {[%clk
0:00:21.2]} 36... f5 {[%clk 0:00:15.6]} 37. Kg2 {[%clk 0:00:21.1]} 37... Kf7
{[%clk 0:00:16.9]} 38. Kg3 {[%clk 0:00:13.8]} 38... Ke6 {[%clk 0:00:18]} 39. Rd3
{[%clk 0:00:15.4]} 39... Rxd6 {[%clk 0:00:18.8]} 40. Re3+ {[%clk 0:00:16.2]}
40... Kf7 {[%clk 0:00:20]} 41. Ra3 {[%clk 0:00:17.8]} 41... Rc6 {[%clk
0:00:20.8]} 42. f3 {[%clk 0:00:18.1]} 42... Ne5 {[%clk 0:00:20.7]} 43. c5 {[%clk
0:00:19.1]} 43... Nd7 {[%clk 0:00:21.8]} 44. Kf4 {[%clk 0:00:19.1]} 44... Nxc5
{[%clk 0:00:22.3]} 45. Ke5 {[%clk 0:00:20.7]} 45... Ne6 {[%clk 0:00:22.9]} 46.
Rb3 {[%clk 0:00:20]} 46... Rc7 {[%clk 0:00:23.1]} 47. Kd6 {[%clk 0:00:21.1]}
47... Re7 {[%clk 0:00:23.7]} 48. Re3 {[%clk 0:00:22.2]} 48... Re8 {[%clk
0:00:22.7]} 49. Rb3 {[%clk 0:00:23.5]} 49... Re7 {[%clk 0:00:21.6]} 50. Re3
{[%clk 0:00:24]} 50... f4 {[%clk 0:00:21.5]} 51. Re4 {[%clk 0:00:24.2]} 51...
Re8 {[%clk 0:00:21.9]} 52. Rb4 {[%clk 0:00:24.8]} 52... Ng7 {[%clk 0:00:22.6]}
53. Rxf4+ {[%clk 0:00:20.6]} 53... Nf5+ {[%clk 0:00:23.3]} 54. Kc6 {[%clk
0:00:21.9]} 54... Re6+ {[%clk 0:00:22]} 55. Kb7 {[%clk 0:00:22.6]} 55... Ke7
{[%clk 0:00:21.2]} 56. a4 {[%clk 0:00:23.1]} 56... Kd7 {[%clk 0:00:21.4]} 57. a5
{[%clk 0:00:23.1]} 57... Rc6 {[%clk 0:00:17.1]} 58. h5 {[%clk 0:00:18.3]} 58...
Nd6+ {[%clk 0:00:17.4]} 59. Ka7 {[%clk 0:00:19.8]} 59... Nb5+ {[%clk 0:00:17.3]}
60. Kb7 {[%clk 0:00:20.7]} 60... Nc7 {[%clk 0:00:17.9]} 61. Rf7+ {[%clk
0:00:20.4]} 61... Kd6 {[%clk 0:00:08.6]} 62. hxg6 {[%clk 0:00:19.1]} 62... Ne6
{[%clk 0:00:04.2]} 63. gxh7 {[%clk 0:00:17.7]} 63... Nc5+ {[%clk 0:00:05.3]} 64.
Ka7 {[%clk 0:00:17.9]} 64... Rc8 {[%clk 0:00:05.8]} 65. g6 {[%clk 0:00:19.3]}
65... Rh8 {[%clk 0:00:06.2]} 66. g7 {[%clk 0:00:18.9]} 66... Rxh7 {[%clk
0:00:07.4]} 67. g8=Q {[%clk 0:00:20.3]} 1-0

[Event "*** MasterClass Titled Tuesday Blitz"]
[Site "Chess.com"]
[Date "2017.09.05"]
[Round "6"]
[White "HKBurwell"]
[Black "Rodalquilar"]
[Result "1-0"]
[WhiteElo "2363"]
[BlackElo "2504"]
[TimeControl "180+2"]
[EndTime "14:30:48 PDT"]
[Termination "HKBurwell won on time"]

1. d4 {[%clk 0:03:01.9]} 1... d5 {[%clk 0:03:00.9]} 2. c4 {[%clk 0:03:03.1]}
2... dxc4 {[%clk 0:03:02.8]} 3. Nf3 {[%clk 0:03:03.6]} 3... Nf6 {[%clk
0:03:03.7]} 4. e3 {[%clk 0:03:05]} 4... g6 {[%clk 0:03:05.1]} 5. Bxc4 {[%clk
0:03:04.6]} 5... Bg7 {[%clk 0:03:06.7]} 6. Nc3 {[%clk 0:02:58.9]} 6... O-O
{[%clk 0:03:07.8]} 7. h3 {[%clk 0:02:53.4]} 7... Ne8 {[%clk 0:03:08.8]} 8. O-O
{[%clk 0:02:40.7]} 8... Nd6 {[%clk 0:03:09.7]} 9. Bd3 {[%clk 0:02:41.1]} 9...
Nc6 {[%clk 0:03:08.6]} 10. Qe2 {[%clk 0:02:34.2]} 10... e5 {[%clk 0:03:09.5]}
11. dxe5 {[%clk 0:02:26.9]} 11... Nxe5 {[%clk 0:03:11.4]} 12. Nxe5 {[%clk
0:02:27.1]} 12... Bxe5 {[%clk 0:03:13.3]} 13. f4 {[%clk 0:02:24.1]} 13... Bg7
{[%clk 0:03:14.1]} 14. e4 {[%clk 0:02:22.5]} 14... Re8 {[%clk 0:03:05.8]} 15.
Bd2 {[%clk 0:02:17.2]} 15... c6 {[%clk 0:03:05.1]} 16. Qf2 {[%clk 0:02:14.5]}
16... Nf5 {[%clk 0:02:58.9]} 17. Qf3 {[%clk 0:02:02.9]} 17... Nh4 {[%clk
0:02:52.9]} 18. Qg3 {[%clk 0:02:01.3]} 18... Qb6+ {[%clk 0:02:27.4]} 19. Kh2
{[%clk 0:01:28.9]} 19... Qxb2 {[%clk 0:02:27]} 20. Rfd1 {[%clk 0:01:21.8]} 20...
Rd8 {[%clk 0:01:55.5]} 21. Rab1 {[%clk 0:01:15.1]} 21... Qa3 {[%clk 0:01:56.6]}
22. Bc4 {[%clk 0:00:37.1]} 22... Rd4 {[%clk 0:00:33.4]} 23. Bb3 {[%clk 0:00:23]}
23... Qe7 {[%clk 0:00:19]} 24. Be1 {[%clk 0:00:23.5]} 24... g5 {[%clk
0:00:20.6]} 25. Rxd4 {[%clk 0:00:21.2]} 25... Bxd4 {[%clk 0:00:21.3]} 26. Rd1
{[%clk 0:00:21.4]} 26... Bg7 {[%clk 0:00:20.1]} 27. Qxg5 {[%clk 0:00:20.4]}
27... Qxg5 {[%clk 0:00:20.9]} 28. fxg5 {[%clk 0:00:22.3]} 28... Be5+ {[%clk
0:00:21.5]} 29. Kg1 {[%clk 0:00:22.2]} 29... Ng6 {[%clk 0:00:21]} 30. Rd8+
{[%clk 0:00:23.5]} 30... Kg7 {[%clk 0:00:22.3]} 31. h4 {[%clk 0:00:24]} 31...
Rb8 {[%clk 0:00:20.5]} 32. h5 {[%clk 0:00:23.4]} 32... Nf4 {[%clk 0:00:20.3]}
33. h6+ {[%clk 0:00:21.6]} 33... Kg6 {[%clk 0:00:21.7]} 34. Rg8+ {[%clk
0:00:22.3]} 34... Kh5 {[%clk 0:00:20.2]} 35. Bxf7+ {[%clk 0:00:23.8]} 35... Kg4
{[%clk 0:00:20.4]} 36. g3 {[%clk 0:00:12.5]} 36... Nd3 {[%clk 0:00:15.1]} 37.
Bd2 {[%clk 0:00:07.2]} 37... Kh3 {[%clk 0:00:16.6]} 38. Rxc8 {[%clk 0:00:07.7]}
38... Rxc8 {[%clk 0:00:15.3]} 39. Be6+ {[%clk 0:00:09]} 39... Kxg3 {[%clk
0:00:16.9]} 40. Bxc8 {[%clk 0:00:10.3]} 40... Nb2 {[%clk 0:00:12.3]} 41. Ne2+
{[%clk 0:00:09.2]} 41... Kf3 {[%clk 0:00:13.1]} 42. Bc3 {[%clk 0:00:09.9]} 42...
Nc4 {[%clk 0:00:12.2]} 43. Bxe5 {[%clk 0:00:05.7]} 43... Nxe5 {[%clk 0:00:14.1]}
44. Nd4+ {[%clk 0:00:06.2]} 44... Kxe4 {[%clk 0:00:15.2]} 45. Bf5+ {[%clk
0:00:06.9]} 45... Kxd4 {[%clk 0:00:16.3]} 46. Bxh7 {[%clk 0:00:05.2]} 46... Nf3+
{[%clk 0:00:17.6]} 47. Kf2 {[%clk 0:00:05.8]} 47... Nxg5 {[%clk 0:00:19.5]} 48.
Bg8 {[%clk 0:00:07.2]} 48... Kc3 {[%clk 0:00:18.4]} 49. Kg3 {[%clk 0:00:08]}
49... Ne4+ {[%clk 0:00:12]} 50. Kf4 {[%clk 0:00:07.3]} 50... Nf6 {[%clk
0:00:13.9]} 51. Kf5 {[%clk 0:00:07.5]} 51... Nxg8 {[%clk 0:00:12.9]} 52. h7
{[%clk 0:00:08.4]} 52... Ne7+ {[%clk 0:00:14.8]} 53. Kg5 {[%clk 0:00:07.9]}
53... Nd5 {[%clk 0:00:16.7]} 54. h8=Q+ {[%clk 0:00:09]} 54... Kb4 {[%clk
0:00:17.2]} 55. Qb8 {[%clk 0:00:08.7]} 55... b5 {[%clk 0:00:17.7]} 56. Qxa7
{[%clk 0:00:09.7]} 56... c5 {[%clk 0:00:19]} 57. a3+ {[%clk 0:00:10.8]} 57...
Kc4 {[%clk 0:00:20]} 58. Kf5 {[%clk 0:00:11.1]} 58... Nc3 {[%clk 0:00:17.9]} 59.
Ke5 {[%clk 0:00:11.3]} 59... Na4 {[%clk 0:00:19.3]} 60. Qf7+ {[%clk 0:00:11.9]}
60... Kc3 {[%clk 0:00:19.8]} 61. Kd5 {[%clk 0:00:12.7]} 61... c4 {[%clk
0:00:20.6]} 62. Kc6 {[%clk 0:00:10.4]} 62... Kb3 {[%clk 0:00:14.8]} 63. Kxb5
{[%clk 0:00:11.5]} 63... Nc3+ {[%clk 0:00:16.4]} 64. Kc5 {[%clk 0:00:12.2]}
64... Na4+ {[%clk 0:00:11.6]} 65. Kd4 {[%clk 0:00:12.8]} 65... Nb2 {[%clk
0:00:13.2]} 66. a4 {[%clk 0:00:09.8]} 66... Kxa4 {[%clk 0:00:08]} 67. Kc3 {[%clk
0:00:10.5]} 67... Nd1+ {[%clk 0:00:07.8]} 68. Kxc4 {[%clk 0:00:11.3]} 68... Nb2+
{[%clk 0:00:09.2]} 69. Kc3 {[%clk 0:00:11.3]} 69... Nd1+ {[%clk 0:00:10.6]} 70.
Kd2 {[%clk 0:00:11.9]} 70... Nb2 {[%clk 0:00:11.8]} 71. Qa2+ {[%clk 0:00:12.9]}
1-0

[Event "*** MasterClass Titled Tuesday Blitz"]
[Site "Chess.com"]
[Date "2017.09.05"]
[Round "6"]
[White "XeresLt"]
[Black "AdrianaNikolova"]
[Result "1/2-1/2"]
[WhiteElo "2379"]
[BlackElo "2254"]
[TimeControl "180+2"]
[EndTime "14:33:25 PDT"]
[Termination "Game drawn - insufficient material"]

1. e4 {[%clk 0:03:01.9]} 1... d5 {[%clk 0:02:59.6]} 2. exd5 {[%clk 0:03:02.4]}
2... Qxd5 {[%clk 0:03:01.5]} 3. Nc3 {[%clk 0:03:03.6]} 3... Qd8 {[%clk
0:03:03.4]} 4. Bc4 {[%clk 0:03:02.6]} 4... Nf6 {[%clk 0:03:05.3]} 5. d3 {[%clk
0:03:03.4]} 5... a6 {[%clk 0:03:06.4]} 6. Qe2 {[%clk 0:02:59.5]} 6... e6 {[%clk
0:03:04.1]} 7. Bd2 {[%clk 0:02:58.1]} 7... b5 {[%clk 0:03:04.4]} 8. Bb3 {[%clk
0:02:58.7]} 8... c5 {[%clk 0:03:05.3]} 9. a4 {[%clk 0:02:56.2]} 9... b4 {[%clk
0:03:04.7]} 10. Ne4 {[%clk 0:02:55.5]} 10... Bb7 {[%clk 0:03:00.9]} 11. Nf3
{[%clk 0:02:55.6]} 11... Nbd7 {[%clk 0:02:59.4]} 12. O-O {[%clk 0:02:56]} 12...
Be7 {[%clk 0:02:59.8]} 13. Neg5 {[%clk 0:02:51]} 13... Bd5 {[%clk 0:02:53.1]}
14. Nxf7 {[%clk 0:02:39.7]} 14... Kxf7 {[%clk 0:02:44.4]} 15. Ng5+ {[%clk
0:02:40.5]} 15... Ke8 {[%clk 0:02:40.6]} 16. Nxe6 {[%clk 0:02:31.6]} 16... Bxe6
{[%clk 0:02:08.2]} 17. Qxe6 {[%clk 0:02:29.9]} 17... Qb6 {[%clk 0:02:09.6]} 18.
Qf7+ {[%clk 0:02:26.1]} 18... Kd8 {[%clk 0:02:10.4]} 19. Rfe1 {[%clk 0:02:15.4]}
19... Re8 {[%clk 0:02:02.8]} 20. Re6 {[%clk 0:02:12.2]} 20... Bd6 {[%clk
0:01:48]} 21. Rae1 {[%clk 0:01:40.8]} 21... Rxe6 {[%clk 0:01:44.4]} 22. Rxe6
{[%clk 0:01:39.4]} 22... Kc7 {[%clk 0:01:40.9]} 23. Bf4 {[%clk 0:01:22.7]} 23...
Re8 {[%clk 0:00:26.3]} 24. Rxe8 {[%clk 0:00:52]} 24... Nxe8 {[%clk 0:00:26.3]}
25. Qxe8 {[%clk 0:00:50.3]} 25... Bxf4 {[%clk 0:00:26.3]} 26. g3 {[%clk
0:00:51.5]} 26... Bd6 {[%clk 0:00:11.5]} 27. Be6 {[%clk 0:00:51.7]} 27... Qc6
{[%clk 0:00:10.2]} 28. Qf7 {[%clk 0:00:52.1]} 28... Be5 {[%clk 0:00:06.9]} 29.
b3 {[%clk 0:00:47.1]} 29... Bd4 {[%clk 0:00:07.2]} 30. Bh3 {[%clk 0:00:30.9]}
30... h6 {[%clk 0:00:05.5]} 31. Kf1 {[%clk 0:00:21.1]} 31... Qd6 {[%clk
0:00:06.8]} 32. f4 {[%clk 0:00:21.1]} 32... Kc6 {[%clk 0:00:06.8]} 33. Bg2+
{[%clk 0:00:22]} 33... Kc7 {[%clk 0:00:07.7]} 34. Qe8 {[%clk 0:00:21.5]} 34...
Bc3 {[%clk 0:00:06]} 35. Qe4 {[%clk 0:00:22.3]} 35... Nf6 {[%clk 0:00:05]} 36.
Qb7+ {[%clk 0:00:22.5]} 36... Kd8 {[%clk 0:00:06.4]} 37. Bh3 {[%clk 0:00:22.8]}
37... Ke8 {[%clk 0:00:05.7]} 38. Bf5 {[%clk 0:00:22.7]} 38... Qe7 {[%clk
0:00:06.3]} 39. Bg6+ {[%clk 0:00:23.1]} 39... Kf8 {[%clk 0:00:05.7]} 40. Qc8+
{[%clk 0:00:22.3]} 40... Ne8 {[%clk 0:00:07.1]} 41. Qf5+ {[%clk 0:00:23.3]}
41... Kg8 {[%clk 0:00:04.9]} 42. Kg2 {[%clk 0:00:24.2]} 42... Qe2+ {[%clk
0:00:04.4]} 43. Kh3 {[%clk 0:00:25]} 43... Qe7 {[%clk 0:00:02.1]} 44. Qd5+
{[%clk 0:00:24.7]} 44... Kf8 {[%clk 0:00:02.6]} 45. Qa8 {[%clk 0:00:22.1]} 45...
Qd7+ {[%clk 0:00:02.9]} 46. Kg2 {[%clk 0:00:20.6]} 46... Qe7 {[%clk 0:00:04.8]}
47. Qxa6 {[%clk 0:00:19.4]} 47... Bd4 {[%clk 0:00:06.3]} 48. Kh3 {[%clk
0:00:18.7]} 48... Qf6 {[%clk 0:00:06.5]} 49. Qxf6+ {[%clk 0:00:18]} 49... Nxf6
{[%clk 0:00:07.4]} 50. a5 {[%clk 0:00:19.3]} 50... Nd5 {[%clk 0:00:07.2]} 51. a6
{[%clk 0:00:20]} 51... Nc7 {[%clk 0:00:08]} 52. a7 {[%clk 0:00:20.1]} 52... c4
{[%clk 0:00:09.5]} 53. dxc4 {[%clk 0:00:20]} 53... Bxa7 {[%clk 0:00:10.9]} 54.
Kg2 {[%clk 0:00:21.1]} 54... Ke7 {[%clk 0:00:12.3]} 55. Be4 {[%clk 0:00:22]}
55... Ne6 {[%clk 0:00:13.5]} 56. Kf3 {[%clk 0:00:22.7]} 56... Nd4+ {[%clk
0:00:14.6]} 57. Ke3 {[%clk 0:00:20.5]} 57... Kf6 {[%clk 0:00:16.5]} 58. Kd3
{[%clk 0:00:21.2]} 58... Bc5 {[%clk 0:00:17.3]} 59. h3 {[%clk 0:00:22.4]} 59...
g5 {[%clk 0:00:15.4]} 60. fxg5+ {[%clk 0:00:21.9]} 60... hxg5 {[%clk 0:00:17]}
61. c3 {[%clk 0:00:21.4]} 61... Nxb3 {[%clk 0:00:15.6]} 62. cxb4 {[%clk
0:00:22.7]} 62... Bxb4 {[%clk 0:00:16.3]} 63. Bf3 {[%clk 0:00:19.6]} 63... Bc5
{[%clk 0:00:16.3]} 64. h4 {[%clk 0:00:19.8]} 64... gxh4 {[%clk 0:00:13.9]} 65.
gxh4 {[%clk 0:00:21]} 65... Nd4 {[%clk 0:00:15.7]} 66. Bd1 {[%clk 0:00:21.3]}
66... Ke5 {[%clk 0:00:15.3]} 67. h5 {[%clk 0:00:22.2]} 67... Nf5 {[%clk
0:00:16.8]} 68. Bg4 {[%clk 0:00:22.2]} 68... Nh6 {[%clk 0:00:17.5]} 69. Bh3
{[%clk 0:00:23.1]} 69... Nf7 {[%clk 0:00:17.7]} 70. Bg2 {[%clk 0:00:23]} 70...
Kf5 {[%clk 0:00:16.4]} 71. Bf3 {[%clk 0:00:19.7]} 71... Kf4 {[%clk 0:00:17.1]}
72. Bd1 {[%clk 0:00:20.4]} 72... Ne5+ {[%clk 0:00:16.9]} 73. Kc3 {[%clk
0:00:21.5]} 73... Kg5 {[%clk 0:00:17.9]} 74. Kb3 {[%clk 0:00:22.9]} 74... Nd3
{[%clk 0:00:16.8]} 75. Bc2 {[%clk 0:00:20.9]} 75... Nf4 {[%clk 0:00:16]} 76. Ka4
{[%clk 0:00:19.3]} 76... Kxh5 {[%clk 0:00:12]} 77. Kb5 {[%clk 0:00:20.8]} 77...
Be3 {[%clk 0:00:09.6]} 78. c5 {[%clk 0:00:20.8]} 78... Ne6 {[%clk 0:00:10.7]}
79. Kc4 {[%clk 0:00:19.4]} 79... Nxc5 {[%clk 0:00:10.8]} 80. Bd1+ {[%clk
0:00:20.2]} 80... Kg5 {[%clk 0:00:11.3]} 81. Bc2 {[%clk 0:00:22.1]} 81... Bg1
{[%clk 0:00:13.1]} 82. Bd1 {[%clk 0:00:22.9]} 82... Kf4 {[%clk 0:00:15]} 83. Bc2
{[%clk 0:00:24.2]} 83... Ke5 {[%clk 0:00:16.9]} 84. Bd1 {[%clk 0:00:25.5]} 84...
Bd4 {[%clk 0:00:18.1]} 85. Bc2 {[%clk 0:00:26.4]} 85... Nd7 {[%clk 0:00:19.5]}
86. Kd3 {[%clk 0:00:27.5]} 86... Nb6 {[%clk 0:00:19.5]} 87. Bb3 {[%clk
0:00:27.9]} 87... Nd7 {[%clk 0:00:20.2]} 88. Bc2 {[%clk 0:00:28.2]} 88... Nc5+
{[%clk 0:00:22.1]} 89. Kc4 {[%clk 0:00:29.5]} 89... Ne6 {[%clk 0:00:23]} 90. Bb1
{[%clk 0:00:29.5]} 90... Nf4 {[%clk 0:00:24.9]} 91. Bc2 {[%clk 0:00:29.9]} 91...
Bg1 {[%clk 0:00:24.3]} 92. Bb1 {[%clk 0:00:30.2]} 92... Nd5 {[%clk 0:00:25.8]}
93. Bh7 {[%clk 0:00:30.6]} 93... Ne3+ {[%clk 0:00:27.6]} 94. Kd3 {[%clk
0:00:31.8]} 94... Ng4 {[%clk 0:00:27.5]} 95. Kc4 {[%clk 0:00:32.1]} 95... Nf6
{[%clk 0:00:27.7]} 96. Bb1 {[%clk 0:00:31.6]} 96... Nd7 {[%clk 0:00:28.2]} 97.
Bh7 {[%clk 0:00:31.5]} 97... Nb6+ {[%clk 0:00:30.1]} 98. Kd3 {[%clk 0:00:32.3]}
98... Bd4 {[%clk 0:00:32]} 99. Bg8 {[%clk 0:00:32.9]} 99... Na4 {[%clk
0:00:30.4]} 100. Kc4 {[%clk 0:00:33]} 100... Nb2+ {[%clk 0:00:30.6]} 101. Kb5
{[%clk 0:00:32.1]} 101... Kd6 {[%clk 0:00:31]} 102. Bh7 {[%clk 0:00:31.8]}
102... Bc5 {[%clk 0:00:31.5]} 103. Bg6 {[%clk 0:00:28.6]} 103... Kd5 {[%clk
0:00:32.1]} 104. Bf7+ {[%clk 0:00:29.3]} 104... Kd4 {[%clk 0:00:32.9]} 105. Bg6
{[%clk 0:00:30.5]} 105... Nc4 {[%clk 0:00:30.3]} 106. Bh7 {[%clk 0:00:30.2]}
106... Kd5 {[%clk 0:00:27.5]} 107. Bg8+ {[%clk 0:00:30.2]} 107... Kd4 {[%clk
0:00:28.8]} 108. Bxc4 {[%clk 0:00:32.1]} 108... Be7 {[%clk 0:00:26.4]} 109. Bd5
{[%clk 0:00:32.8]} 109... Kxd5 {[%clk 0:00:25.7]} 1/2-1/2

[Event "*** MasterClass Titled Tuesday Blitz"]
[Site "Chess.com"]
[Date "2017.09.05"]
[Round "7"]
[White "Indianlad"]
[Black "aa175"]
[Result "1-0"]
[WhiteElo "2603"]
[BlackElo "1859"]
[TimeControl "180+2"]
[EndTime "14:36:00 PDT"]
[Termination "Indianlad won by resignation"]

1. e4 {[%clk 0:03:01.9]} 1... e5 {[%clk 0:02:58.9]} 2. f4 {[%clk 0:02:57.6]}
2... exf4 {[%clk 0:02:45.9]} 3. Bc4 {[%clk 0:02:57.1]} 3... Bc5 {[%clk
0:02:31.2]} 4. Bxf7+ {[%clk 0:02:53.1]} 4... Kxf7 {[%clk 0:02:32.3]} 5. Qh5+
{[%clk 0:02:54]} 5... g6 {[%clk 0:02:34.2]} 6. Qxc5 {[%clk 0:02:55.1]} 6... Qh4+
{[%clk 0:02:36.1]} 7. Kf1 {[%clk 0:02:55.5]} 7... Na6 {[%clk 0:02:31.9]} 8. Qc4+
{[%clk 0:02:54.4]} 8... Kg7 {[%clk 0:02:32.6]} 9. b3 {[%clk 0:02:54.1]} 9... Nf6
{[%clk 0:02:31]} 10. Nf3 {[%clk 0:02:53.4]} 10... Qh5 {[%clk 0:02:25.8]} 11. Bb2
{[%clk 0:02:54.8]} 11... d6 {[%clk 0:02:17]} 12. Bxf6+ {[%clk 0:02:54.5]} 12...
Kxf6 {[%clk 0:02:16.8]} 13. Qd4+ {[%clk 0:02:56]} 13... Kf7 {[%clk 0:02:17.7]}
14. Qxh8 {[%clk 0:02:55.2]} 14... Bh3 {[%clk 0:02:18.3]} 15. Qc3 {[%clk
0:02:55.7]} 15... Bxg2+ {[%clk 0:02:11.7]} 16. Kxg2 {[%clk 0:02:55.4]} 16...
Qg4+ {[%clk 0:02:13.6]} 17. Kf2 {[%clk 0:02:56.7]} 1-0